[Event "*** Titled Tuesday Blitz"]
[Site "Chess.com"]
[Date "2021.02.09"]
[Round "6"]
[White "juli2512"]
[Black "Azde"]
[Result "1/2-1/2"]
[WhiteElo "2181"]
[BlackElo "2350"]
[TimeControl "180+1"]
[EndTime "11:09:40 PST"]
[Termination "Game drawn by repetition"]

1. e4 {[%clk 0:03:00.9]} 1... c6 {[%clk 0:02:59.8]} 2. d3 {[%clk 0:02:59.8]}
2... d5 {[%clk 0:03:00.7]} 3. Nd2 {[%clk 0:03:00.1]} 3... e5 {[%clk 0:02:59.3]}
4. g3 {[%clk 0:02:59.3]} 4... Bd6 {[%clk 0:02:59.4]} 5. Bg2 {[%clk 0:02:59.4]}
5... Ne7 {[%clk 0:02:59.3]} 6. Ngf3 {[%clk 0:02:58.4]} 6... O-O {[%clk
0:02:59.3]} 7. O-O {[%clk 0:02:58.9]} 7... f5 {[%clk 0:02:59.3]} 8. Re1 {[%clk
0:02:57]} 8... fxe4 {[%clk 0:02:40.7]} 9. dxe4 {[%clk 0:02:56.4]} 9... Bg4
{[%clk 0:02:24.9]} 10. h3 {[%clk 0:02:54.2]} 10... Bxf3 {[%clk 0:02:24.3]} 11.
Bxf3 {[%clk 0:02:51.8]} 11... Nd7 {[%clk 0:02:19.3]} 12. Bg2 {[%clk 0:02:38.5]}
12... Nf6 {[%clk 0:02:17.3]} 13. exd5 {[%clk 0:02:36.9]} 13... cxd5 {[%clk
0:02:18.2]} 14. Nb3 {[%clk 0:02:36.4]} 14... a5 {[%clk 0:02:11.6]} 15. a4 {[%clk
0:02:35.7]} 15... Rc8 {[%clk 0:02:10.5]} 16. Bd2 {[%clk 0:02:32]} 16... b6
{[%clk 0:02:10]} 17. Bg5 {[%clk 0:02:28.5]} 17... e4 {[%clk 0:02:03.4]} 18. Qd2
{[%clk 0:02:12.3]} 18... Qc7 {[%clk 0:01:47.2]} 19. c3 {[%clk 0:02:10.1]} 19...
h6 {[%clk 0:01:45.8]} 20. Be3 {[%clk 0:02:04.6]} 20... Nf5 {[%clk 0:01:18.9]}
21. Nd4 {[%clk 0:01:49.8]} 21... Nxd4 {[%clk 0:01:18.1]} 22. Bxd4 {[%clk
0:01:48.5]} 22... Qc6 {[%clk 0:01:09.8]} 23. Red1 {[%clk 0:01:44.9]} 23... Bc5
{[%clk 0:00:53.9]} 24. Bf1 {[%clk 0:01:18.4]} 24... Bxd4 {[%clk 0:00:48.8]} 25.
Qxd4 {[%clk 0:01:17.4]} 25... Qe6 {[%clk 0:00:44.5]} 26. Re1 {[%clk 0:01:12.3]}
26... Qf5 {[%clk 0:00:43.7]} 27. Qxb6 {[%clk 0:01:03.4]} 27... Rb8 {[%clk
0:00:42.8]} 28. Qe3 {[%clk 0:00:55.7]} 28... Rxb2 {[%clk 0:00:42.1]} 29. Re2
{[%clk 0:00:54.4]} 29... Rxe2 {[%clk 0:00:36.6]} 30. Qxe2 {[%clk 0:00:52.1]}
30... Nd7 {[%clk 0:00:36.6]} 31. Rd1 {[%clk 0:00:47.3]} 31... Ne5 {[%clk
0:00:36.5]} 32. Bg2 {[%clk 0:00:46.7]} 32... Nf3+ {[%clk 0:00:22.4]} 33. Bxf3
{[%clk 0:00:45.2]} 33... exf3 {[%clk 0:00:23.3]} 34. Qf1 {[%clk 0:00:44.3]}
34... Kh8 {[%clk 0:00:20.6]} 35. Kh2 {[%clk 0:00:43.4]} 35... Re8 {[%clk
0:00:20.7]} 36. Qd3 {[%clk 0:00:37.8]} 36... Qf6 {[%clk 0:00:18.3]} 37. Qxd5
{[%clk 0:00:31.1]} 37... Qxc3 {[%clk 0:00:18.2]} 38. Rd2 {[%clk 0:00:26.8]}
38... Qa3 {[%clk 0:00:15.3]} 39. Qd7 {[%clk 0:00:21.4]} 39... Rf8 {[%clk
0:00:15]} 40. h4 {[%clk 0:00:20.6]} 40... Qc3 {[%clk 0:00:12.2]} 41. Qd4 {[%clk
0:00:18.7]} 41... Qa3 {[%clk 0:00:10.7]} 42. Qd6 {[%clk 0:00:18.5]} 42... Qxd6
{[%clk 0:00:09.4]} 43. Rxd6 {[%clk 0:00:18.5]} 43... Re8 {[%clk 0:00:09.7]} 44.
g4 {[%clk 0:00:17.8]} 44... Re4 {[%clk 0:00:09]} 45. Kg3 {[%clk 0:00:17.6]}
45... Rxa4 {[%clk 0:00:09.3]} 46. Kxf3 {[%clk 0:00:18.1]} 46... Kh7 {[%clk
0:00:09.2]} 47. h5 {[%clk 0:00:17]} 47... Ra3+ {[%clk 0:00:07.9]} 48. Kg2 {[%clk
0:00:16.7]} 48... Ra2 {[%clk 0:00:07.8]} 49. Kg3 {[%clk 0:00:16.5]} 49... a4
{[%clk 0:00:08.1]} 50. Ra6 {[%clk 0:00:16.1]} 50... a3 {[%clk 0:00:08.2]} 51. f3
{[%clk 0:00:16.5]} 51... Ra1 {[%clk 0:00:08.5]} 52. Kf4 {[%clk 0:00:17]} 52...
a2 {[%clk 0:00:08.5]} 53. Kf5 {[%clk 0:00:16.7]} 53... Rf1 {[%clk 0:00:05.9]}
54. Rxa2 {[%clk 0:00:15.6]} 54... Rxf3+ {[%clk 0:00:06.4]} 55. Ke4 {[%clk
0:00:15.9]} 55... Rf6 {[%clk 0:00:06.6]} 56. Ra4 {[%clk 0:00:15]} 56... Rf7
{[%clk 0:00:06.3]} 57. Ke5 {[%clk 0:00:15.1]} 57... Re7+ {[%clk 0:00:06.5]} 58.
Kf5 {[%clk 0:00:15.2]} 58... Rb7 {[%clk 0:00:06.7]} 59. Re4 {[%clk 0:00:14.5]}
59... Rb5+ {[%clk 0:00:06.9]} 60. Kf4 {[%clk 0:00:14.2]} 60... Rg5 {[%clk
0:00:06.7]} 61. Kf3 {[%clk 0:00:14]} 61... Rc5 {[%clk 0:00:06.3]} 62. Kf4 {[%clk
0:00:14]} 62... g5+ {[%clk 0:00:06]} 63. hxg6+ {[%clk 0:00:13.8]} 63... Kxg6
{[%clk 0:00:06.9]} 64. Re6+ {[%clk 0:00:13.8]} 64... Kg7 {[%clk 0:00:07.2]} 65.
Rd6 {[%clk 0:00:13.7]} 65... Rb5 {[%clk 0:00:06.8]} 66. Kf3 {[%clk 0:00:13.4]}
66... Rc5 {[%clk 0:00:06.9]} 67. Kf4 {[%clk 0:00:13.6]} 67... Rb5 {[%clk
0:00:07.3]} 68. Kf3 {[%clk 0:00:13.8]} 68... Rc5 {[%clk 0:00:07.7]} 69. Kf4
{[%clk 0:00:14.3]} 1/2-1/2

[Event "*** Titled Tuesday Blitz"]
[Site "Chess.com"]
[Date "2021.02.09"]
[Round "6"]
[White "Ave_Mariia"]
[Black "RobertoJBM"]
[Result "0-1"]
[WhiteElo "2486"]
[BlackElo "2718"]
[TimeControl "180+1"]
[EndTime "11:09:43 PST"]
[Termination "RobertoJBM won by resignation"]

1. d4 {[%clk 0:03:00.9]} 1... d5 {[%clk 0:02:59.8]} 2. c4 {[%clk 0:03:01.2]}
2... c6 {[%clk 0:02:59.6]} 3. Nf3 {[%clk 0:03:00.8]} 3... Nf6 {[%clk 0:02:59.5]}
4. Qc2 {[%clk 0:03:00.6]} 4... dxc4 {[%clk 0:02:58.2]} 5. Qxc4 {[%clk
0:03:00.4]} 5... Bf5 {[%clk 0:02:58.2]} 6. g3 {[%clk 0:02:58.8]} 6... Nbd7
{[%clk 0:02:56.7]} 7. Bg2 {[%clk 0:02:58.4]} 7... e6 {[%clk 0:02:56.8]} 8. O-O
{[%clk 0:02:57.7]} 8... Be7 {[%clk 0:02:49.8]} 9. e3 {[%clk 0:02:57.6]} 9... O-O
{[%clk 0:02:48.5]} 10. Qe2 {[%clk 0:02:57.6]} 10... Ne4 {[%clk 0:02:40.7]} 11.
Nfd2 {[%clk 0:02:47.2]} 11... Nxd2 {[%clk 0:02:38.8]} 12. Nxd2 {[%clk
0:02:48.1]} 12... e5 {[%clk 0:02:36.6]} 13. e4 {[%clk 0:02:46.5]} 13... Be6
{[%clk 0:02:04.5]} 14. d5 {[%clk 0:02:42.8]} 14... cxd5 {[%clk 0:02:05.4]} 15.
exd5 {[%clk 0:02:43.7]} 15... Bf5 {[%clk 0:02:04.4]} 16. Nc4 {[%clk 0:02:37]}
16... Bf6 {[%clk 0:01:49.2]} 17. d6 {[%clk 0:02:27.2]} 17... Rb8 {[%clk
0:01:41.8]} 18. Be3 {[%clk 0:02:23.1]} 18... b5 {[%clk 0:01:37.1]} 19. Nd2
{[%clk 0:02:05.5]} 19... Qa5 {[%clk 0:01:34.5]} 20. Nb3 {[%clk 0:02:02.4]} 20...
Qa4 {[%clk 0:01:30.5]} 21. Nc5 {[%clk 0:01:54.6]} 21... Nxc5 {[%clk 0:01:27.5]}
22. Bxc5 {[%clk 0:01:55.5]} 22... b4 {[%clk 0:01:11]} 23. b3 {[%clk 0:01:28.6]}
23... Qa5 {[%clk 0:01:03.4]} 24. Rac1 {[%clk 0:01:27.4]} 24... Rfd8 {[%clk
0:00:52.7]} 25. Rfd1 {[%clk 0:01:07.6]} 25... h6 {[%clk 0:00:50]} 26. Qf3 {[%clk
0:00:48.8]} 26... Bg6 {[%clk 0:00:28.5]} 27. d7 {[%clk 0:00:47]} 27... Qxa2
{[%clk 0:00:16.8]} 28. Bd6 {[%clk 0:00:46.8]} 28... e4 {[%clk 0:00:11.8]} 29.
Qg4 {[%clk 0:00:33.7]} 29... h5 {[%clk 0:00:12]} 30. Qf4 {[%clk 0:00:33.9]}
30... Rb7 {[%clk 0:00:11.5]} 31. Bc7 {[%clk 0:00:33.5]} 31... Rxc7 {[%clk
0:00:11.2]} 32. Qxc7 {[%clk 0:00:33.5]} 32... Qxb3 {[%clk 0:00:10.8]} 33. Qxa7
{[%clk 0:00:28.4]} 33... Kh7 {[%clk 0:00:10]} 34. Qb7 {[%clk 0:00:18.2]} 34...
Qe6 {[%clk 0:00:09.5]} 35. Qc6 {[%clk 0:00:17]} 35... Qe7 {[%clk 0:00:08.2]} 36.
Qb5 {[%clk 0:00:15.1]} 36... e3 {[%clk 0:00:07.9]} 37. fxe3 {[%clk 0:00:13.7]}
37... Qxe3+ {[%clk 0:00:08.8]} 38. Kh1 {[%clk 0:00:14.2]} 38... b3 {[%clk
0:00:08.8]} 39. Re1 {[%clk 0:00:12.7]} 39... Qd2 {[%clk 0:00:07.7]} 40. Rcd1
{[%clk 0:00:12.3]} 40... Qc2 {[%clk 0:00:08.1]} 41. Qe2 {[%clk 0:00:11.4]} 41...
b2 {[%clk 0:00:07.4]} 42. Qxc2 {[%clk 0:00:06.7]} 42... Bxc2 {[%clk 0:00:08.3]}
43. Be4+ {[%clk 0:00:07]} 43... Bxe4+ {[%clk 0:00:08.7]} 44. Rxe4 {[%clk
0:00:07.9]} 44... Rxd7 {[%clk 0:00:09.6]} 45. Rb1 {[%clk 0:00:07.7]} 45... Rc7
{[%clk 0:00:09.9]} 46. Ree1 {[%clk 0:00:07.9]} 46... Rc2 {[%clk 0:00:10.1]} 47.
Kg1 {[%clk 0:00:07.9]} 47... h4 {[%clk 0:00:10.2]} 48. gxh4 {[%clk 0:00:07.8]}
48... Bxh4 {[%clk 0:00:10.7]} 49. Rf1 {[%clk 0:00:06.8]} 49... Bf6 {[%clk
0:00:11]} 50. Kh1 {[%clk 0:00:05.1]} 50... Kg6 {[%clk 0:00:10.3]} 51. Rg1+
{[%clk 0:00:05.5]} 51... Kh5 {[%clk 0:00:10.7]} 52. Rg2 {[%clk 0:00:05.8]} 52...
Rc1+ {[%clk 0:00:10.2]} 53. Rg1 {[%clk 0:00:06.2]} 53... Rxb1 {[%clk 0:00:10.3]}
54. Rxb1 {[%clk 0:00:06.1]} 54... Kg4 {[%clk 0:00:11.2]} 55. Kg2 {[%clk
0:00:06.4]} 55... Kf4 {[%clk 0:00:11.7]} 56. Kf2 {[%clk 0:00:06.8]} 56... Ke4
{[%clk 0:00:12.2]} 57. Ke2 {[%clk 0:00:07.2]} 57... Bc3 {[%clk 0:00:12.7]} 58.
Rf1 {[%clk 0:00:06.3]} 58... f5 {[%clk 0:00:12]} 59. Rg1 {[%clk 0:00:05.8]}
59... f4 {[%clk 0:00:11.4]} 60. Rb1 {[%clk 0:00:05.3]} 60... f3+ {[%clk
0:00:11.1]} 61. Kf2 {[%clk 0:00:05.7]} 61... Bd4+ {[%clk 0:00:10.6]} 62. Kg3
{[%clk 0:00:04.4]} 62... f2 {[%clk 0:00:10.5]} 63. Kg2 {[%clk 0:00:04.9]} 63...
Kd3 {[%clk 0:00:10.6]} 64. h4 {[%clk 0:00:02.5]} 64... Kc2 {[%clk 0:00:10.7]}
65. Rxb2+ {[%clk 0:00:03.1]} 65... Kxb2 {[%clk 0:00:11.6]} 66. h5 {[%clk
0:00:02.8]} 66... Kc2 {[%clk 0:00:12.2]} 0-1

[Event "*** Titled Tuesday Blitz"]
[Site "Chess.com"]
[Date "2021.02.09"]
[Round "6"]
[White "DanilNajdin"]
[Black "Fusikk"]
[Result "0-1"]
[WhiteElo "2469"]
[BlackElo "2631"]
[TimeControl "180+1"]
[EndTime "11:09:44 PST"]
[Termination "Fusikk won on time"]

1. e4 {[%clk 0:03:00.9]} 1... c6 {[%clk 0:02:59.7]} 2. d4 {[%clk 0:02:59.6]}
2... d5 {[%clk 0:03:00.2]} 3. exd5 {[%clk 0:03:00.5]} 3... cxd5 {[%clk
0:03:00.1]} 4. Bd3 {[%clk 0:03:00.1]} 4... Nc6 {[%clk 0:03:00]} 5. c3 {[%clk
0:03:00.7]} 5... Qc7 {[%clk 0:03:00.5]} 6. Ne2 {[%clk 0:02:53.7]} 6... Bg4
{[%clk 0:03:00.2]} 7. f3 {[%clk 0:02:46.3]} 7... Bd7 {[%clk 0:02:56]} 8. Bf4
{[%clk 0:02:22.1]} 8... Qb6 {[%clk 0:02:55.6]} 9. Qb3 {[%clk 0:02:22.4]} 9... e6
{[%clk 0:02:37.6]} 10. Qxb6 {[%clk 0:02:20.9]} 10... axb6 {[%clk 0:02:38.5]} 11.
Bc7 {[%clk 0:02:11]} 11... Na5 {[%clk 0:02:29]} 12. Nd2 {[%clk 0:01:58.1]} 12...
b5 {[%clk 0:02:28.5]} 13. Bxa5 {[%clk 0:01:44.2]} 13... Rxa5 {[%clk 0:02:27.9]}
14. a3 {[%clk 0:01:44.2]} 14... Bd6 {[%clk 0:02:23.2]} 15. g3 {[%clk 0:01:26.4]}
15... h5 {[%clk 0:02:19.8]} 16. Kf2 {[%clk 0:01:23.2]} 16... g5 {[%clk
0:02:06.3]} 17. f4 {[%clk 0:01:15]} 17... g4 {[%clk 0:01:18.1]} 18. h4 {[%clk
0:01:11.2]} 18... Nh6 {[%clk 0:01:11.7]} 19. Rhe1 {[%clk 0:01:02.9]} 19... Kf8
{[%clk 0:01:03.5]} 20. Nc1 {[%clk 0:01:02.6]} 20... Kg7 {[%clk 0:01:02]} 21. Na2
{[%clk 0:01:03.2]} 21... Re8 {[%clk 0:00:58.7]} 22. Nb4 {[%clk 0:01:03.4]} 22...
Raa8 {[%clk 0:00:57.2]} 23. Nc2 {[%clk 0:01:03.1]} 23... f6 {[%clk 0:00:54.7]}
24. Ne3 {[%clk 0:01:02.4]} 24... Bc6 {[%clk 0:00:54.8]} 25. Kg2 {[%clk
0:00:43.6]} 25... e5 {[%clk 0:00:54.1]} 26. fxe5 {[%clk 0:00:41.5]} 26... fxe5
{[%clk 0:00:53.9]} 27. Nf5+ {[%clk 0:00:23.3]} 27... Nxf5 {[%clk 0:00:51.1]} 28.
Bxf5 {[%clk 0:00:24.2]} 28... e4 {[%clk 0:00:25.1]} 29. Nf1 {[%clk 0:00:23.1]}
29... Bf8 {[%clk 0:00:22]} 30. Ne3 {[%clk 0:00:23.6]} 30... Re7 {[%clk
0:00:12.5]} 31. Rf1 {[%clk 0:00:23.9]} 31... Rae8 {[%clk 0:00:12]} 32. Rf2
{[%clk 0:00:21.5]} 32... Rd8 {[%clk 0:00:12.4]} 33. Raf1 {[%clk 0:00:20.8]}
33... Be8 {[%clk 0:00:10.9]} 34. Kh2 {[%clk 0:00:17.9]} 34... Bf7 {[%clk
0:00:09]} 35. Kg2 {[%clk 0:00:17]} 35... Kg8 {[%clk 0:00:08.1]} 36. Kh2 {[%clk
0:00:16.3]} 36... Bh6 {[%clk 0:00:08.4]} 37. Re2 {[%clk 0:00:16.7]} 37... Kg7
{[%clk 0:00:08.5]} 38. Kg2 {[%clk 0:00:16.3]} 38... Rf8 {[%clk 0:00:07.6]} 39.
Bxg4 {[%clk 0:00:15.9]} 39... Bxe3 {[%clk 0:00:06.4]} 40. Rxe3 {[%clk
0:00:09.9]} 40... hxg4 {[%clk 0:00:06.7]} 41. Rf4 {[%clk 0:00:10.3]} 41... Be6
{[%clk 0:00:05.9]} 42. Re2 {[%clk 0:00:09.4]} 42... Rxf4 {[%clk 0:00:05.4]} 43.
gxf4 {[%clk 0:00:10.3]} 43... Rf7 {[%clk 0:00:06.1]} 44. Kg3 {[%clk 0:00:11.2]}
44... Kh6 {[%clk 0:00:06.2]} 45. Re3 {[%clk 0:00:11.4]} 45... Kh5 {[%clk
0:00:06.6]} 46. Re2 {[%clk 0:00:11.8]} 46... Kg6 {[%clk 0:00:07.1]} 47. Re3
{[%clk 0:00:12.2]} 47... Kf5 {[%clk 0:00:07.7]} 48. Re2 {[%clk 0:00:12.7]} 48...
Rh7 {[%clk 0:00:08.2]} 49. Re3 {[%clk 0:00:13.2]} 49... Bf7 {[%clk 0:00:08.7]}
50. Re2 {[%clk 0:00:13.3]} 50... Bh5 {[%clk 0:00:09]} 51. Re3 {[%clk 0:00:13.8]}
51... Rh8 {[%clk 0:00:09.6]} 52. Re2 {[%clk 0:00:14]} 52... Rc8 {[%clk
0:00:09.4]} 53. Re3 {[%clk 0:00:13.8]} 53... Rc6 {[%clk 0:00:09.9]} 54. Re2
{[%clk 0:00:14]} 54... b4 {[%clk 0:00:10.2]} 55. axb4 {[%clk 0:00:10.1]} 55...
Ra6 {[%clk 0:00:10.1]} 56. b3 {[%clk 0:00:04.2]} 56... Ra3 {[%clk 0:00:09.1]}
57. Rb2 {[%clk 0:00:04.6]} 57... b5 {[%clk 0:00:09]} 58. Rb1 {[%clk 0:00:04]}
58... e3 {[%clk 0:00:09.1]} 59. Kg2 {[%clk 0:00:03.7]} 59... Kxf4 {[%clk
0:00:09.2]} 60. Rf1+ {[%clk 0:00:03.1]} 60... Ke4 {[%clk 0:00:09.6]} 61. Rf8
{[%clk 0:00:03.2]} 61... Ra2+ {[%clk 0:00:09.5]} 62. Kg3 {[%clk 0:00:02.8]}
62... e2 {[%clk 0:00:08.4]} 63. Kf2 {[%clk 0:00:02]} 63... g3+ {[%clk
0:00:08.4]} 0-1

[Event "*** Titled Tuesday Blitz"]
[Site "Chess.com"]
[Date "2021.02.09"]
[Round "6"]
[White "Sergienko_Sergey"]
[Black "Gulkov_Igor"]
[Result "1/2-1/2"]
[WhiteElo "2386"]
[BlackElo "2498"]
[TimeControl "180+1"]
[EndTime "11:09:44 PST"]
[Termination "Game drawn by repetition"]

1. e4 {[%clk 0:02:58]} 1... c5 {[%clk 0:02:59.1]} 2. Nf3 {[%clk 0:02:57.4]} 2...
d6 {[%clk 0:02:58.5]} 3. d4 {[%clk 0:02:56.3]} 3... cxd4 {[%clk 0:02:58.1]} 4.
Nxd4 {[%clk 0:02:56.3]} 4... Nf6 {[%clk 0:02:57.7]} 5. Nc3 {[%clk 0:02:56.1]}
5... a6 {[%clk 0:02:57.4]} 6. Bg5 {[%clk 0:02:55.7]} 6... e6 {[%clk 0:02:56.6]}
7. Qf3 {[%clk 0:02:55.4]} 7... h6 {[%clk 0:02:55.4]} 8. Bd2 {[%clk 0:02:54.1]}
8... Nbd7 {[%clk 0:02:53]} 9. O-O-O {[%clk 0:02:52.1]} 9... Qc7 {[%clk
0:02:52.1]} 10. Qg3 {[%clk 0:02:27.4]} 10... b5 {[%clk 0:02:44.2]} 11. a3 {[%clk
0:02:23.6]} 11... Bb7 {[%clk 0:02:40.3]} 12. Bd3 {[%clk 0:02:16.6]} 12... Nc5
{[%clk 0:02:27.2]} 13. Rhe1 {[%clk 0:02:12.4]} 13... Rc8 {[%clk 0:02:26]} 14.
Kb1 {[%clk 0:02:11.5]} 14... Nxd3 {[%clk 0:02:17.9]} 15. cxd3 {[%clk 0:02:10.8]}
15... Qb6 {[%clk 0:02:05.8]} 16. Be3 {[%clk 0:02:07.6]} 16... Qd8 {[%clk
0:01:54.4]} 17. f4 {[%clk 0:02:03.2]} 17... Rxc3 {[%clk 0:01:40.3]} 18. bxc3
{[%clk 0:02:01.8]} 18... Qa5 {[%clk 0:01:39.8]} 19. Bc1 {[%clk 0:01:41.2]} 19...
Nd7 {[%clk 0:01:36.3]} 20. Nb3 {[%clk 0:01:13.7]} 20... Qa4 {[%clk 0:01:34.9]}
21. Nd4 {[%clk 0:00:52]} 21... e5 {[%clk 0:01:26.2]} 22. Nc2 {[%clk 0:00:42.1]}
22... Nc5 {[%clk 0:00:58.4]} 23. Nb4 {[%clk 0:00:22]} 23... Qb3+ {[%clk
0:00:52.1]} 24. Ka1 {[%clk 0:00:21.3]} 24... Na4 {[%clk 0:00:51.5]} 25. Qf2
{[%clk 0:00:14.3]} 25... Nxc3 {[%clk 0:00:36]} 26. Qb2 {[%clk 0:00:10.3]} 26...
Qxb2+ {[%clk 0:00:35]} 27. Bxb2 {[%clk 0:00:10.1]} 27... Nxd1 {[%clk 0:00:34.6]}
28. Rxd1 {[%clk 0:00:10.1]} 28... a5 {[%clk 0:00:28.2]} 29. Nd5 {[%clk
0:00:08.9]} 29... Bxd5 {[%clk 0:00:26.6]} 30. exd5 {[%clk 0:00:08.8]} 30... Kd7
{[%clk 0:00:19.1]} 31. Rc1 {[%clk 0:00:08.6]} 31... Be7 {[%clk 0:00:18.7]} 32.
fxe5 {[%clk 0:00:08.5]} 32... dxe5 {[%clk 0:00:18.3]} 33. Bxe5 {[%clk
0:00:08.9]} 33... Bxa3 {[%clk 0:00:16.5]} 34. Rc6 {[%clk 0:00:07.3]} 34... Rc8
{[%clk 0:00:13.9]} 35. Ra6 {[%clk 0:00:07.1]} 35... Bb4 {[%clk 0:00:12]} 36.
Ra7+ {[%clk 0:00:06.9]} 36... Ke8 {[%clk 0:00:11.7]} 37. Bxg7 {[%clk 0:00:06.2]}
37... Bc3+ {[%clk 0:00:10]} 38. Bxc3 {[%clk 0:00:05.2]} 38... Rxc3 {[%clk
0:00:09.8]} 39. Rxa5 {[%clk 0:00:05.6]} 39... Rxd3 {[%clk 0:00:09.8]} 40. Rxb5
{[%clk 0:00:05.7]} 40... Rd1+ {[%clk 0:00:09.7]} 41. Kb2 {[%clk 0:00:05.4]}
41... Kd7 {[%clk 0:00:09]} 42. Kc3 {[%clk 0:00:05.3]} 42... Rg1 {[%clk
0:00:08.5]} 43. Rb7+ {[%clk 0:00:04]} 43... Kd6 {[%clk 0:00:08.2]} 44. Kc4
{[%clk 0:00:03.3]} 44... Rc1+ {[%clk 0:00:07.5]} 45. Kd4 {[%clk 0:00:02.8]}
45... Rd1+ {[%clk 0:00:07.4]} 46. Ke4 {[%clk 0:00:02.9]} 46... Re1+ {[%clk
0:00:07.4]} 47. Kf5 {[%clk 0:00:02.6]} 47... Re2 {[%clk 0:00:07.3]} 48. Rxf7
{[%clk 0:00:01.5]} 48... Kxd5 {[%clk 0:00:06.7]} 49. Rf6 {[%clk 0:00:01.9]}
49... Rxg2 {[%clk 0:00:05.9]} 50. Rxh6 {[%clk 0:00:01.9]} 50... Rf2+ {[%clk
0:00:05.6]} 51. Kg6 {[%clk 0:00:01.2]} 51... Ke6 {[%clk 0:00:05.6]} 52. h4
{[%clk 0:00:01.6]} 52... Rg2+ {[%clk 0:00:05.2]} 53. Kh5+ {[%clk 0:00:01.5]}
53... Kf7 {[%clk 0:00:05.2]} 54. Ra6 {[%clk 0:00:01.6]} 54... Rc2 {[%clk
0:00:04.8]} 55. Kg5 {[%clk 0:00:01.4]} 55... Rc5+ {[%clk 0:00:04.3]} 56. Kg4
{[%clk 0:00:01.4]} 56... Rc4+ {[%clk 0:00:04.3]} 57. Kg5 {[%clk 0:00:01.5]}
57... Rc5+ {[%clk 0:00:04.4]} 58. Kg4 {[%clk 0:00:01.6]} 58... Rc4+ {[%clk
0:00:04.6]} 59. Kg5 {[%clk 0:00:01.7]} 59... Rc5+ {[%clk 0:00:04.7]} 1/2-1/2

[Event "*** Titled Tuesday Blitz"]
[Site "Chess.com"]
[Date "2021.02.09"]
[Round "6"]
[White "rasmussvane"]
[Black "Jospem"]
[Result "1-0"]
[WhiteElo "2904"]
[BlackElo "3043"]
[TimeControl "180+1"]
[EndTime "11:09:45 PST"]
[Termination "rasmussvane won by resignation"]

1. Nf3 {[%clk 0:03:00.9]} 1... c5 {[%clk 0:02:58.4]} 2. c4 {[%clk 0:03:01]} 2...
Nc6 {[%clk 0:02:58.4]} 3. Nc3 {[%clk 0:03:01.3]} 3... g6 {[%clk 0:02:57.5]} 4.
e3 {[%clk 0:03:00.8]} 4... Bg7 {[%clk 0:02:58]} 5. d4 {[%clk 0:03:01.4]} 5... d6
{[%clk 0:02:58.9]} 6. Be2 {[%clk 0:03:01.1]} 6... Nf6 {[%clk 0:02:58.8]} 7. d5
{[%clk 0:02:58.1]} 7... Nb4 {[%clk 0:02:57]} 8. e4 {[%clk 0:02:53.9]} 8... O-O
{[%clk 0:02:56.8]} 9. h3 {[%clk 0:02:53.8]} 9... e5 {[%clk 0:02:56.8]} 10. Be3
{[%clk 0:02:34.1]} 10... Nh5 {[%clk 0:02:41.6]} 11. a3 {[%clk 0:02:31.2]} 11...
Na6 {[%clk 0:02:41.3]} 12. Nd2 {[%clk 0:02:29.4]} 12... Nf4 {[%clk 0:02:40.1]}
13. Bf1 {[%clk 0:02:02.8]} 13... Nh5 {[%clk 0:02:06.3]} 14. g3 {[%clk
0:01:57.8]} 14... Bd7 {[%clk 0:01:59.2]} 15. Be2 {[%clk 0:01:57.3]} 15... Nf6
{[%clk 0:01:59.8]} 16. g4 {[%clk 0:01:57.7]} 16... Nc7 {[%clk 0:01:56.8]} 17. h4
{[%clk 0:01:51.8]} 17... a6 {[%clk 0:01:54.8]} 18. a4 {[%clk 0:01:45.6]} 18...
Qc8 {[%clk 0:01:47.5]} 19. Rg1 {[%clk 0:01:39.6]} 19... Rb8 {[%clk 0:01:43.2]}
20. a5 {[%clk 0:01:25]} 20... b5 {[%clk 0:01:43.1]} 21. axb6 {[%clk 0:01:25.9]}
21... Rxb6 {[%clk 0:01:42.8]} 22. b3 {[%clk 0:01:26.4]} 22... Rb8 {[%clk
0:01:36.4]} 23. h5 {[%clk 0:01:24.3]} 23... h6 {[%clk 0:01:18.4]} 24. g5 {[%clk
0:01:11]} 24... hxg5 {[%clk 0:01:17.8]} 25. Bxg5 {[%clk 0:01:11.9]} 25... Qe8
{[%clk 0:01:12.3]} 26. Qc2 {[%clk 0:00:55.2]} 26... Nh7 {[%clk 0:01:11.7]} 27.
Bh4 {[%clk 0:00:51.6]} 27... Kh8 {[%clk 0:01:07.4]} 28. Qd3 {[%clk 0:00:44.9]}
28... Bh6 {[%clk 0:01:02.3]} 29. Qf3 {[%clk 0:00:20.2]} 29... g5 {[%clk
0:00:49.9]} 30. Bg3 {[%clk 0:00:19.6]} 30... g4 {[%clk 0:00:49.8]} 31. Qd3
{[%clk 0:00:15.1]} 31... Ng5 {[%clk 0:00:45]} 32. Kd1 {[%clk 0:00:11.5]} 32...
Nh3 {[%clk 0:00:43.6]} 33. Rf1 {[%clk 0:00:07.6]} 33... Nf4 {[%clk 0:00:36.5]}
34. Qc2 {[%clk 0:00:06.8]} 34... Rg8 {[%clk 0:00:28.1]} 35. Kc1 {[%clk
0:00:05.8]} 35... Qc8 {[%clk 0:00:28]} 36. Kb2 {[%clk 0:00:06.2]} 36... Qb7
{[%clk 0:00:28.6]} 37. Ka2 {[%clk 0:00:06.6]} 37... a5 {[%clk 0:00:28.8]} 38.
Rab1 {[%clk 0:00:06.7]} 38... Na6 {[%clk 0:00:29]} 39. Qd1 {[%clk 0:00:05.5]}
39... Nb4+ {[%clk 0:00:28.9]} 40. Ka1 {[%clk 0:00:05.7]} 40... Qa6 {[%clk
0:00:27.6]} 41. Na4 {[%clk 0:00:05.1]} 41... Nxe2 {[%clk 0:00:23.3]} 42. Qxe2
{[%clk 0:00:05.1]} 42... Nc2+ {[%clk 0:00:23.9]} 43. Ka2 {[%clk 0:00:05.6]}
43... Nd4 {[%clk 0:00:23.8]} 44. Qd3 {[%clk 0:00:06.2]} 44... Rb4 {[%clk
0:00:23.5]} 45. f4 {[%clk 0:00:03.2]} 45... gxf3 {[%clk 0:00:20.1]} 46. Rxf3
{[%clk 0:00:03.8]} 46... Bxa4 {[%clk 0:00:17.3]} 47. bxa4 {[%clk 0:00:02.1]}
47... Rxa4+ {[%clk 0:00:16.5]} 48. Kb2 {[%clk 0:00:02.7]} 48... Rb4+ {[%clk
0:00:16]} 49. Kc1 {[%clk 0:00:03]} 49... Nxf3 {[%clk 0:00:14.8]} 50. Qxf3 {[%clk
0:00:02.8]} 50... Bg5 {[%clk 0:00:07.2]} 51. h6 {[%clk 0:00:02.7]} 51... Qb7
{[%clk 0:00:05.6]} 52. Rxb4 {[%clk 0:00:02.4]} 52... Qxb4 {[%clk 0:00:06.2]} 53.
Be1 {[%clk 0:00:03.2]} 53... Bxh6 {[%clk 0:00:04.4]} 54. Qxf7 {[%clk 0:00:03.3]}
54... Qc3+ {[%clk 0:00:04.1]} 55. Kd1 {[%clk 0:00:03.3]} 55... Qe3 {[%clk
0:00:04.4]} 56. Qf6+ {[%clk 0:00:03.7]} 56... Kh7 {[%clk 0:00:05]} 57. Qf5+
{[%clk 0:00:04]} 57... Rg6 {[%clk 0:00:05]} 58. Qd7+ {[%clk 0:00:04.5]} 58...
Bg7 {[%clk 0:00:05.4]} 59. Qf5 {[%clk 0:00:05.1]} 59... Qh6 {[%clk 0:00:05.5]}
60. Nf3 {[%clk 0:00:05.3]} 60... Qf4 {[%clk 0:00:04.2]} 61. Qh5+ {[%clk
0:00:05.7]} 61... Bh6 {[%clk 0:00:04.3]} 62. Bd2 {[%clk 0:00:05.3]} 62... Rg1+
{[%clk 0:00:01.4]} 63. Kc2 {[%clk 0:00:05.4]} 63... Qxe4+ {[%clk 0:00:01.9]} 64.
Kb2 {[%clk 0:00:06]} 64... Qf4 {[%clk 0:00:01.7]} 65. Bxf4 {[%clk 0:00:06]}
65... Rg2+ {[%clk 0:00:02.2]} 66. Kb3 {[%clk 0:00:05.9]} 66... exf4 {[%clk
0:00:02.8]} 67. Qf7+ {[%clk 0:00:06.5]} 1-0